fUST/lending_fUST_20260206
["ID","MTS","AMOUNT","RATE_DAILY","PERIOD"]
[404639916,1770370240353,-366.0,0.00029494,2]
[404639917,1770370240362,-218.43492476,0.00029825,2]
[404639918,1770370240371,-187.42954281,0.00029825,2]
[404639919,1770370240381,-229.12622753,0.00029825,2]
[404639920,1770370240391,-385.41881087,0.00029825,2]
[404639921,1770370240402,-12174.1773928,0.00029826,2]
[404639922,1770370240412,-1351.51,0.00029826,10]
[404639923,1770370240421,-2066.98,0.00029826,3]
[404639924,1770370240430,-2110.17,0.00029826,10]
[404639925,1770370240439,-1033.49,0.00029826,3]
[404639926,1770370240448,-1758.47,0.00029826,10]
[404639927,1770370240456,-516.75,0.00029826,3]
[404639928,1770370240466,-1465.39,0.00029826,10]
[404639929,1770370240475,-9600.75732775,0.00029829,2]
[404639930,1770370240484,-480.44528912,0.00029835,2]
[404639931,1770370240492,-9014.56413439,0.00029836,2]
[404639941,1770370246198,-2740.34289481,0.00024953,2]
[404639942,1770370246209,-799.65154018,0.00024953,2]
[404639951,1770370248450,-571.0204,0.00024953,2]
[404639953,1770370292920,-5000.0,0.00024703,2]
[404639954,1770370293153,-888.98516501,0.00024953,2]
[404639955,1770370293182,-2610.13175072,0.00024953,2]
[404639956,1770370293209,-279.68761427,0.000291,2]
[404639957,1770370293333,-9127.27532215,0.00029836,2]
[404639958,1770370293376,-10000.01,0.00029836,2]
[404639959,1770370293512,-10000.01,0.00029836,2]
[404639960,1770370295822,-2340.27532388,0.00024953,2]
[404639961,1770370295862,-5319.45935224,0.00029836,2]
[404639962,1770370299165,-1221.16,0.00029826,10]
[404639963,1770370299204,-7557.69,0.00029836,2]
[404639964,1770370299414,-10000.01,0.00029836,2]
[404639965,1770370299541,-10000.01,0.00029836,2]
[404639966,1770370299663,-10000.01,0.00029836,2]
[404639986,1770370508346,5000.0,0.00013011,2]
[404639990,1770370530230,5000.0,0.00013011,2]
[404639994,1770370552043,0.01,0.00013011,2]
[404639995,1770370552068,4999.99,0.00013011,2]
[404639997,1770370575059,5000.0,0.00013011,2]
[404639998,1770370597263,0.02,0.00013011,2]
[404639999,1770370597283,4999.98,0.00013011,2]
[404640001,1770370619532,5000.0,0.00013011,2]
[404640002,1770370641494,0.03,0.00013011,2]
[404640003,1770370641519,4999.97,0.00013011,2]
[404640005,1770370663424,3328.61592564,0.00013011,2]
[404640006,1770370700256,1671.42407436,0.00013011,2]
[404640007,1770370700279,3328.57592564,0.00013011,2]
[404640008,1770370737868,1451.01066956,0.00013011,2]
[404640010,1770370744485,507.7368652,0.00030137,120]
[404640266,1770370888015,2739.0356266,0.00013011,2]
[404640308,1770370917307,2481.3877782,0.00013011,2]
[404640309,1770370917334,2518.6122218,0.00013011,2]
[404640316,1770370925427,1923.15766073,0.00013011,2]
[404640387,1770370940823,5000.0,0.00013011,2]
[404640475,1770370962568,558.24011747,0.00013011,2]
[404640476,1770370962593,4441.75988253,0.00013011,2]
[404640521,1770370984660,5000.0,0.00013011,2]
[404640522,1770371007218,558.25011747,0.00013011,2]
[404640523,1770371007241,4441.74988253,0.00013011,2]
[404640527,1770371029778,5000.0,0.00013011,2]
[404640533,1770371051799,558.26011747,0.00013011,2]
[404640534,1770371051822,4441.73988253,0.00013011,2]
[404640574,1770371074311,5000.0,0.00013011,2]
[404640604,1770371096084,558.27011747,0.00013011,2]
[404640605,1770371096111,4441.72988253,0.00013011,2]
[404640608,1770371118574,5000.0,0.00013011,2]
[404640611,1770371142026,558.28011747,0.00013011,2]
[404640612,1770371144550,-4441.71988253,0.00013011,2]
[404640613,1770371164089,5000.0,0.00013011,2]
[404640648,1770371186769,5000.0,0.00013011,2]
[404640655,1770371208850,5000.0,0.00013011,2]
[404640657,1770371230745,5000.0,0.00013011,2]
[404640660,1770371252834,5000.0,0.00013011,2]
[404640664,1770371275402,5000.0,0.00013011,2]
[404640686,1770371298856,5000.0,0.00013011,2]
[404640694,1770371321829,5000.0,0.00013011,2]
[404640695,1770371344370,972.84555876,0.00013011,2]
[404640770,1770371438151,-3734.9112968,0.00013015,2]
[404640771,1770371438162,-150.0,0.00013061,2]
[404640772,1770371438172,-208.126988,0.00013106,2]
[404640773,1770371438182,-300.0,0.00013272,2]
[404640774,1770371438193,-1200.0,0.00013272,2]
[404640775,1770371438203,-500.0,0.00013273,2]
[404640776,1770371438213,-360.05758915,0.00013273,2]
[404640777,1770371438223,-500.0,0.00013273,2]
[404640778,1770371438234,-597.41743951,0.00013273,2]
[404640779,1770371438244,-500.0,0.00013273,2]
[404640780,1770371438257,-500.0,0.00013273,2]
[404640781,1770371438268,-500.0,0.00013273,2]
[404640782,1770371438278,-500.0,0.00013273,2]
[404640783,1770371438288,-500.0,0.00013273,2]
[404640784,1770371438299,-300.0,0.00013673,2]
[404640785,1770371438310,-179.78077384,0.00013699,2]
[404640786,1770371438320,-501.67114341,0.00013699,2]
[404640787,1770371438330,-500.0,0.00013699,2]
[404640788,1770371438340,-527.06038284,0.00013699,2]
[404640789,1770371438350,-302.67038262,0.00013699,2]
[404640790,1770371438360,-501.88235367,0.00013699,2]
[404640791,1770371438370,-500.0,0.00013699,2]
[404640792,1770371438380,-500.0,0.00013699,2]
[404640793,1770371438389,-500.0,0.00013699,2]
[404640794,1770371438403,-500.34222187,0.00013699,2]
[404640795,1770371438413,-500.22153059,0.00013699,2]
[404640796,1770371438423,-158.98554855,0.00013699,2]
[404640797,1770371438434,-500.0,0.00013699,2]
[404640798,1770371438444,-158.09649889,0.00013699,2]
[404640799,1770371438453,-500.74987273,0.00013699,2]
[404640800,1770371438463,-500.0,0.00013699,2]
[404640801,1770371438476,-270.48138826,0.00013699,2]
[404640802,1770371438485,-398.14320347,0.00013699,2]
[404640803,1770371438495,-242.32164162,0.00013699,2]
[404640804,1770371438505,-500.0,0.00013699,2]
[404640805,1770371438515,-501.82378068,0.00013699,2]
[404640806,1770371438524,-500.79097954,0.00013699,2]
[404640807,1770371438534,-502.46736247,0.00013699,2]
[404640808,1770371438544,-534.86954154,0.00013699,2]
[404640809,1770371438554,-487.56698473,0.00013699,2]
[404640810,1770371438564,-500.0,0.00013699,2]
[404640811,1770371438574,-500.0,0.00013699,2]
[404640812,1770371438584,-500.0,0.00013699,2]
[404640813,1770371438594,-500.0,0.00013699,2]
[404640814,1770371438604,-500.56239178,0.00013699,2]
[404640815,1770371438769,-500.0,0.00013821,2]
[404640816,1770371438780,-376.75179994,0.00013821,2]
[404640817,1770371438790,-978.17665717,0.00013821,2]
[404640818,1770371438799,-1072.4109965,0.00013821,2]
[404640819,1770371438808,-367.31222593,0.00013821,2]
[404640820,1770371438818,-1034.52967472,0.00013821,2]
[404640821,1770371438827,-1001.02128687,0.00014247,2]
[404640822,1770371438837,-1000.0,0.00014247,2]
[404640823,1770371438846,-1000.0,0.00014247,2]
[404640824,1770371438856,-1000.0,0.00014247,2]
[404640825,1770371438865,-1000.0,0.00014247,2]
[404640826,1770371438875,-1006.33977774,0.00014247,2]
[404640827,1770371438885,-1003.23468492,0.00014247,2]
[404640828,1770371438898,-1000.0,0.00014247,2]
[404640829,1770371438908,-742.19560529,0.00014247,2]
[404640830,1770371438917,-480.0,0.00014599,2]
[404640831,1770371438927,-373.42626047,0.00014795,2]
[404640832,1770371438937,-1000.0,0.00014795,2]
[404640833,1770371438947,-161.76585532,0.00014795,2]
[404640834,1770371438958,-581.41091801,0.00014795,2]
[404640835,1770371438967,-1500.0,0.00014795,2]
[404640836,1770371438976,-177.0,0.00015061,2]
[404640837,1770371438986,-3609.54463023,0.00015469,2]
[404640838,1770371438995,-204.0,0.00017061,2]
[404640839,1770371439005,-231.0,0.00019061,2]
[404640840,1770371439014,-250.0,0.00020396,2]
[404640841,1770371439025,-225.65992983,0.00021061,2]
[404640842,1770371439035,-1000.0,0.00021586,2]
[404640843,1770371439044,-315.45,0.00022781,2]
[404640844,1770371439054,-315.45,0.00023464,2]
[404640845,1770371439063,-315.45,0.00024168,2]
[404640846,1770371439073,-632.0,0.00024616,2]
[404640847,1770371439082,-1540.127,0.00024616,2]
[404640848,1770371439092,-1397.3,0.00027397,2]
[404640849,1770371439101,-632.0,0.00027616,2]
[404640850,1770371439111,-747.13931215,0.0002899,2]
[404640851,1770371439121,-2321.97,0.0002899,3]
[404640852,1770371439131,-1160.98,0.0002899,3]
[404640853,1770371439141,-1137.27,0.0002899,10]
[404640854,1770371439150,-121206.58265335,0.00029,2]
[404640855,1770371439171,-30419.46376262,0.00029,2]
[404640860,1770371440475,-6604.88046162,0.00029,2]
[404640861,1770371440680,-7277.31908511,0.00029,2]
[404640882,1770371444857,-580.49,0.0002899,3]
[404640883,1770371444868,-30024.59375872,0.00029,2]
[404640884,1770371444884,-4999.97423919,0.00029,2]
[404640909,1770371446837,-24703.16351783,0.00029,2]
[404640910,1770371446848,-35999.64922523,0.00029,2]
[404640911,1770371446867,-151732.46672851,0.00029,2]
[404640916,1770371473275,-419.00737647,0.00013273,2]
[404640958,1770371547689,-80.99262353,0.00013273,2]
[404640959,1770371547710,-188.00308597,0.00013699,2]
[404640963,1770371592589,-500.0,0.00013273,2]
[404640964,1770371594710,-500.0,0.00013273,2]
[404641108,1770372062863,-300.0,0.00013272,2]
[404641109,1770372062890,-255.0,0.00013272,2]
[404641110,1770372062915,-500.0,0.00013273,2]
[404641111,1770372062934,-300.0,0.00013273,2]
[404641112,1770372062949,-162.56921871,0.00013273,2]
[404641113,1770372062958,-92.43078129,0.00013273,2]
[404641114,1770372062969,-407.56921871,0.00013273,2]
[404641115,1770372062978,-92.43078129,0.00013273,2]
[404641116,1770372062989,-43.84570963,0.00013273,2]
[404641118,1770372108794,500.0,0.00026751,120]
[404641254,1770372511007,5000.0,0.00013262,2]
[404641307,1770372632301,-300.0,0.00013272,2]
[404641309,1770372632310,-150.0,0.00013272,2]
[404641311,1770372632320,-503.41867305,0.00013273,2]
[404641313,1770372632330,-500.0,0.00013273,2]
[404641315,1770372632339,-8.19895007,0.00013273,2]
[404641317,1770372632351,-491.80104993,0.00013273,2]
[404641319,1770372632360,-501.18682057,0.00013273,2]
[404641321,1770372632369,-500.0,0.00013273,2]
[404641323,1770372632378,-500.0,0.00013273,2]
[404641324,1770372632387,-505.42236627,0.00013273,2]
[404641326,1770372632396,-188.94762625,0.00013273,2]
[404641327,1770372632405,-362.51244897,0.00013273,2]
[404641328,1770372632415,-500.92398346,0.00013273,2]
[404641329,1770372632425,-500.0,0.00013273,2]
[404641330,1770372632435,-500.0,0.00013273,2]
[404641331,1770372632444,-500.0,0.00013273,2]
[404641332,1770372632454,-300.0,0.00013673,2]
[404641333,1770372632463,-500.0,0.00013698,2]
[404641334,1770372632473,-500.0,0.00013699,2]
[404641335,1770372632482,-250.57339177,0.00013699,2]
[404641336,1770372632491,-500.0,0.00013699,2]
[404641337,1770372632501,-194.90653811,0.00013699,2]
[404641338,1770372632510,-348.17389209,0.00013699,2]
[404641339,1770372632526,-186.87949951,0.00013699,2]
[404641340,1770372632536,-500.0,0.00013699,2]
[404641342,1770372632546,-500.0,0.00013699,2]
[404641343,1770372632555,-500.0,0.00013699,2]
[404641344,1770372632565,-500.0,0.00013699,2]
[404641345,1770372632574,-500.0,0.00013699,2]
[404641346,1770372632584,-58.73190049,0.00013699,2]
[404641347,1770372632596,-441.26809951,0.00013699,2]
[404641348,1770372632607,-507.77467851,0.00013699,2]
[404641349,1770372632616,-500.0,0.00013699,2]
[404641350,1770372632626,-1000.0,0.00013821,2]
[404641351,1770372632635,-1000.0,0.00013821,2]
[404641352,1770372632645,-363.72350908,0.00013821,2]
[404641353,1770372632654,-542.02340124,0.00013821,2]
[404641354,1770372632663,-1000.0,0.00013821,2]
[404641355,1770372632673,-339.46110815,0.00013821,2]
[404641356,1770372632682,-214.10871006,0.00013821,2]
[404641357,1770372632691,-1000.25590725,0.00013973,2]
[404641358,1770372632700,-3775.65302099,0.00014242,2]
[404641380,1770372638527,-953.00126883,0.00013273,2]
[404641386,1770372640801,-3e-08,0.00013273,2]
[404641387,1770372640812,-2329.99652885,0.00013273,2]
[404641388,1770372640823,-1552.93431921,0.00014242,2]
[404641389,1770372640832,-503.38687654,0.00014247,2]
[404641390,1770372640842,-629.78767873,0.00014247,2]
[404641391,1770372640851,-1000.0,0.00014247,2]
[404641392,1770372640861,-1000.0,0.00014247,2]
[404641393,1770372640870,-500.0,0.00014247,2]
[404641394,1770372640879,-500.0,0.00014247,2]
[404641395,1770372640890,-1000.0,0.00014247,2]
[404641396,1770372640899,-420.0,0.00014551,2]
[404641397,1770372640908,-500.0,0.00014794,2]
[404641398,1770372640918,-558.84864658,0.00014795,2]
[404641399,1770372640927,-282.17862867,0.00014795,2]
[404641400,1770372640936,-457.96549605,0.00014795,2]
[404641401,1770372640945,-554.42349675,0.00014795,2]
[404641402,1770372640955,-298.492193,0.00015196,2]
[404641403,1770372640964,-177.0,0.00015272,2]
[404641404,1770372640973,-298.492193,0.00015835,2]
[404641405,1770372640983,-298.492193,0.00016475,2]
[404641406,1770372640992,-298.492193,0.00017115,2]
[404641407,1770372641001,-298.492193,0.00017754,2]
[404641408,1770372641010,-38343.09704363,0.00017918,2]
[404641409,1770372641025,-3366.84738887,0.00017918,2]
[404641410,1770372641034,-298.492193,0.00018394,2]
[404641411,1770372641044,-500.0,0.00021585,2]
[404641412,1770372641054,-944.8496029,0.00022475,2]
[404641413,1770372641063,-244.12,0.000225,7]
[404641414,1770372641072,-268.13,0.00022781,2]
[404641415,1770372641082,-268.13,0.00023464,2]
[404641416,1770372641091,-632.0,0.00023977,2]
[404641417,1770372641101,-179.0,0.00023977,2]
[404641418,1770372641111,-268.13,0.00024168,2]
[404641419,1770372641120,-1041.66666667,0.00025,30]
[404641420,1770372641130,-2814.58,0.00025216,30]
[404641421,1770372641139,-1644.73,0.00025749,3]
[404641422,1770372641149,-822.36,0.00025749,3]
[404641423,1770372641157,-150.462,0.0002589,11]
[404641424,1770372641166,-947.73,0.00026061,10]
[404641425,1770372641175,-411.18,0.00026061,3]
[404641426,1770372641184,-5864.91221862,0.00026071,2]
[404641432,1770372645701,-14281.65105286,0.00026071,2]
[404641441,1770372646644,-2192.00748304,0.00026071,2]
[404641442,1770372646655,-7531.32909662,0.00026071,2]
[404641443,1770372646707,-117123.70709057,0.00026071,2]
[404641447,1770372648556,2814.58,0.00022391,30]
[404641448,1770372649716,1706.93566876,0.00018294,2]
[404641449,1770372663824,500.0,0.00013699,2]
[404641463,1770372744074,500.0,0.00017917,2]
[404641464,1770372744106,500.0,0.00017917,2]
[404641465,1770372744136,500.0,0.00017917,2]
[404641466,1770372744166,500.0,0.00017917,2]
[404641467,1770372744193,500.0,0.00017917,2]
[404641468,1770372744223,500.0,0.00017917,2]
[404641469,1770372744250,500.0,0.00017917,2]
[404641470,1770372744277,632.9019069,0.00017917,2]
[404641471,1770372744305,500.0,0.00017917,2]
[404641472,1770372744333,500.0,0.00017917,2]
[404641473,1770372744372,500.0,0.00017917,2]
[404641474,1770372744399,500.0,0.00017917,2]
[404641475,1770372744447,500.0,0.00017917,2]
[404641514,1770372925636,508.00770508,0.0002606,120]
[404641515,1770372945336,1601.63,0.00013962,2]
[404641633,1770373345074,204.0,0.00026434,120]
[404641655,1770373434406,-204.9303591,0.00013972,2]
[404641656,1770373434434,-166.66666666,0.00015961,2]
[404641657,1770373434463,-150.0,0.00016061,2]
[404641658,1770373434491,-177.0,0.00018061,2]
[404641659,1770373434520,-231.0,0.00020061,2]
[404641660,1770373434549,-294.41,0.00022781,2]
[404641661,1770373434577,-2590.93525603,0.00022781,2]
[404641662,1770373434846,-2370.12543642,0.00022781,2]
[404641663,1770373434875,-354.192667,0.00023139,2]
[404641664,1770373434903,-177.1508896,0.00023391,2]
[404641665,1770373437296,-2225.8083446,0.00023391,2]
[404641666,1770373437481,-10000.01,0.00023391,2]
[404641667,1770373440247,-3306.064311,0.00023391,2]
[404641668,1770373440278,-1524.02166886,0.00023464,2]
[404641669,1770373440307,-45.42804028,0.00023464,2]
[404641670,1770373440357,-248.98195972,0.00023464,2]
[404641671,1770373443359,-5000.0,0.00023157,2]
[404641672,1770373443394,-0.01,0.00023754,2]
[404641673,1770373443540,-3313.1662687,0.00023754,2]
[404641674,1770373443563,-3373.6774626,0.00023754,2]
[404641708,1770373638563,2742.93,0.00022188,30]
[404641711,1770373655274,2875.97279499,0.00022701,2]
[404641715,1770373671918,202.01095849,0.00012,5]
[404641718,1770373685946,425.59632822,0.00010618,2]
[404641719,1770373692541,189.90894925,0.0001,2]
[404641733,1770373706277,3563.59096905,0.00017,2]
[404641734,1770373706313,6254.61430296,0.00017,2]
[404641743,1770373717233,10000.01,0.0001,2]
[404641744,1770373717258,9384.91288749,0.0001,2]
[404641780,1770373832408,-398.47255486,0.00022754,2]
[404641792,1770373838711,-5000.0,0.00022526,2]
[404641793,1770373838721,-4601.52744514,0.00022754,2]
[404641794,1770373838732,-407.5,0.00022781,2]
[404641795,1770373838742,-285.0,0.00022983,2]
[404641796,1770373838752,-3021.81,0.00022984,2]
[404641797,1770373838764,-243.67420476,0.00023215,2]
[404641800,1770373840896,-56.32579524,0.00023215,2]
[404641802,1770373840907,-1063.27434508,0.00023216,2]
[404641803,1770373840952,-279.91476,0.00023216,2]
[404641804,1770373840964,-2624.4114283,0.00023216,2]
[404641824,1770373846754,-970.608543,0.00023216,2]
[404641825,1770373846775,-407.5,0.00023464,2]
[404641826,1770373846794,-150.0,0.0002357,2]
[404641827,1770373846804,-407.5,0.00024168,2]
[404641829,1770373846817,-212.47143471,0.00024301,2]
[404641830,1770373846832,-1373.0,0.00025257,2]
[404641831,1770373846843,-2158.0,0.00025257,2]
[404641832,1770373846855,-632.0,0.00025257,2]
[404641833,1770373846868,-719.0,0.00025257,2]
[404641834,1770373846881,-179.0,0.00025257,2]
[404641835,1770373846895,-231.0,0.0002557,2]
[404641836,1770373846907,-518.08971368,0.00025707,2]
[404641837,1770373846921,-191.76428148,0.00025849,2]
[404641838,1770373846935,-1737.41666287,0.0002597,2]
[404641839,1770373846946,-789.77,0.00026061,10]
[404641840,1770373846961,-1165.02,0.00026061,3]
[404641841,1770373846975,-658.14,0.00026061,10]
[404641842,1770373846988,-582.51,0.00026061,3]
[404641843,1770373847000,-548.45,0.00026061,10]
[404641844,1770373847012,-336.31170238,0.0002607,2]
[404641845,1770373847023,-500.0,0.0002607,2]
[404641846,1770373847035,-500.0,0.0002607,2]
[404641847,1770373847047,-500.0,0.0002607,2]
[404641848,1770373847061,-226.03899035,0.0002607,2]
[404641849,1770373847073,-236.98910077,0.0002607,2]
[404641850,1770373847088,-500.0,0.0002607,2]
[404641851,1770373847101,-500.0,0.0002607,2]
[404641852,1770373847113,-500.0,0.0002607,2]
[404641853,1770373847126,-500.0,0.0002607,2]
[404641854,1770373847142,-500.0,0.0002607,2]
[404641855,1770373847154,-500.0,0.0002607,2]
[404641856,1770373847164,-500.0,0.0002607,2]
[404641857,1770373847174,-618.51449143,0.0002607,2]
[404641858,1770373847184,-500.0,0.0002607,2]
[404641859,1770373847197,-500.0,0.0002607,2]
[404641860,1770373847208,-500.0,0.0002607,2]
[404641861,1770373847220,-500.0,0.0002607,2]
[404641862,1770373847233,-500.0,0.0002607,2]
[404641863,1770373847245,-258.75859427,0.0002607,2]
[404641864,1770373847256,-500.0,0.0002607,2]
[404641865,1770373847269,-500.0,0.0002607,2]
[404641866,1770373847281,-500.0,0.0002607,2]
[404641867,1770373847291,-500.0,0.0002607,2]
[404641868,1770373847303,-500.0,0.0002607,2]
[404641869,1770373847314,-500.0,0.0002607,2]
[404641870,1770373847324,-500.0,0.0002607,2]
[404641871,1770373847333,-500.0,0.0002607,2]
[404641872,1770373847344,-500.0,0.0002607,2]
[404641873,1770373847353,-216.48737564,0.0002607,2]
[404641874,1770373847365,-283.51262436,0.0002607,2]
[404641875,1770373847375,-500.0,0.0002607,2]
[404641876,1770373847384,-500.0,0.0002607,2]
[404641877,1770373847395,-500.0,0.0002607,2]
[404641878,1770373847404,-500.0,0.0002607,2]
[404641879,1770373847415,-500.0,0.0002607,2]
[404641880,1770373847424,-500.0,0.0002607,2]
[404641881,1770373847434,-500.0,0.0002607,2]
[404641882,1770373847443,-500.0,0.0002607,2]
[404641883,1770373847454,-3250.65454268,0.00026071,2]
[404646757,1770373906223,-1000.0,0.00025083,30]
[404646761,1770373906253,-2907.84750853,0.00025205,2]
[404646780,1770373906462,-2113.18683522,0.00025205,2]
[404646782,1770373906644,-71.12814772,0.00025205,2]
[404646783,1770373906673,-150.0,0.00025508,2]
[404646784,1770373906700,-2158.0,0.00025698,2]
[404646785,1770373906728,-615.489,0.00025698,2]
[404646786,1770373906802,-4010.77570456,0.0002581,2]
[404646788,1770373906962,-989.22429544,0.0002581,2]
[404646789,1770373906990,-291.25,0.00026061,3]
[404646790,1770373907018,-873.79,0.00026061,3]
[404646791,1770373907116,-5691.48140912,0.00026071,2]
[404646792,1770373907271,-10000.01,0.00026071,2]
[404646793,1770373907471,-370.78454977,0.00025958,2]
[404646794,1770373907511,-719.0,0.00025698,2]
[404646795,1770373907520,-8539.44090046,0.00026071,2]
[404646796,1770373907687,-10000.01,0.00026071,2]
[404646797,1770373907900,-10000.01,0.00026071,2]
[404646798,1770373909061,-10000.01,0.00026071,2]
[404646799,1770373909363,-10000.01,0.00026071,2]
[404646801,1770373961754,-496.33793183,0.00023667,2]
[404646802,1770373961789,-1199.33161938,0.00024703,2]
[404646804,1770374090525,42449.61472677,0.0003013,120]
[404646818,1770374466015,-3162.658206,0.00022201,2]
[404646819,1770374466040,-1837.341794,0.00022201,2]
[404646820,1770374474962,2474.1871255,0.00022,2]
[404646833,1770374746336,500.0,0.00027397,120]
[404646834,1770374746742,500.0,0.00030137,120]
[404646911,1770375037725,-888.98516501,0.00021758,2]
[404646912,1770375037735,-330.65586203,0.00022063,2]
[404646913,1770375037744,-4899.30778946,0.00022063,2]
[404646914,1770375037753,-191.0,0.00022152,2]
[404646915,1770375037762,-1200.0,0.00022152,2]
[404646916,1770375037771,-300.0,0.00022152,2]
[404646917,1770375037780,-12570.0,0.00022153,2]
[404646918,1770375037790,-150.0,0.00022159,2]
[404646919,1770375037798,-495.7086183,0.00022341,2]
[404646920,1770375037808,-203.24301622,0.00022781,2]
[404646938,1770375039998,-143.13698378,0.00022781,2]
[404646939,1770375040008,-1992.84071551,0.00022983,2]
[404646970,1770375046093,-1703.09372289,0.00022983,2]
[404646971,1770375046103,-2014.85625048,0.00023364,2]
[404646972,1770375046111,-14673.3841109,0.000234,2]
[404646973,1770375046120,-346.38,0.00023464,2]
[404646974,1770375046130,-8656.5485708,0.00023626,2]
[404646975,1770375046140,-776.2178052,0.00023644,2]
[404646976,1770375046149,-346.38,0.00024168,2]
[404646977,1770375046158,-666.01740718,0.00024767,2]
[404646978,1770375046168,-1198.83133293,0.00024767,2]
[404646979,1770375046177,-2158.0,0.00025698,2]
[404646980,1770375046187,-223.174,0.00025698,2]
[404646981,1770375046196,-505.8883265,0.00025959,2]
[404646982,1770375046206,-5000.0,0.00026,2]
[404646983,1770375046215,-348.37,0.00026051,10]
[404646984,1770375046224,-602.51,0.00026051,10]
[404646985,1770375046234,-502.09,0.00026051,10]
[404646986,1770375046243,-5000.0,0.0002606,2]
[404646987,1770375046252,-20275.12924742,0.00026061,2]
[404646988,1770375046275,-12733.17520486,0.00026061,2]
[404646989,1770375046288,-3162.65820691,0.00026061,2]
[404646990,1770375056375,500.0,0.00027397,120]
[404646991,1770375056799,500.0,0.00030137,120]
[404646993,1770375330518,-500.0,0.00013699,2]
[404646994,1770375426850,500.0,0.00013273,2]
[404646996,1770375643680,-597.88837773,0.00014247,2]
[404646997,1770375670710,500.0,0.00027397,120]
[404646998,1770375671127,518.11675666,0.00030137,120]
[404647004,1770375846481,500.0,0.00013699,2]
[404647007,1770375909872,3429.6135466,0.00013,2]
[404647008,1770375929362,5570.3964534,0.000137,2]
[404647009,1770375931589,-4429.6035466,0.000137,2]
[404647010,1770375950125,-5000.0,0.00014104,2]
[404647022,1770376169748,232.90799087,0.0003,120]
[404647084,1770376237965,-1000.0,0.00014247,2]
[404647085,1770376237974,-150.0,0.00014315,2]
[404647086,1770376237984,-234.89268668,0.00014795,2]
[404647087,1770376237993,-707.70500532,0.00015469,2]
[404647103,1770376240771,500.0,0.00024885,120]
[404647119,1770376244014,-4290.41758051,0.00015469,2]
[404647138,1770376246035,-58.4103077,0.00015469,2]
[404647139,1770376246045,-177.0,0.00016315,2]
[404647140,1770376246205,-252.26374825,0.00017767,2]
[404647141,1770376246215,-525.37842568,0.0002088,2]
[404647142,1770376246225,-177.096333,0.00021514,2]
[404647143,1770376246235,-175.51517554,0.00022432,2]
[404647144,1770376246245,-701.35864146,0.00022432,2]
[404647145,1770376246255,-1590.0,0.00022669,2]
[404647146,1770376246266,-294.42,0.00022781,2]
[404647147,1770376246277,-294.42,0.00023464,2]
[404647148,1770376246292,-294.42,0.00024168,2]
[404647149,1770376246308,-280.507,0.00024406,2]
[404647150,1770376246321,-667.41218959,0.00024767,2]
[404647151,1770376246331,-488.07460829,0.00024855,2]
[404647152,1770376246342,-12153.97080403,0.00024886,2]
[404647153,1770376246361,-34827.39610287,0.00024886,2]
[404647154,1770376246372,-1762.99921917,0.00024916,2]
[404647155,1770376246383,-7121.0635283,0.00025016,2]
[404647156,1770376246393,-500.0,0.00025861,2]
[404647157,1770376246403,-250.0,0.00025861,2]
[404647158,1770376246414,-500.0,0.00025861,2]
[404647159,1770376246423,-500.0,0.00025861,2]
[404647160,1770376246434,-250.0,0.00025861,2]
[404647161,1770376246445,-500.0,0.00025861,2]
[404647162,1770376246455,-500.0,0.00025861,2]
[404647163,1770376246465,-500.0,0.00025861,2]
[404647164,1770376246475,-500.0,0.00025861,2]
[404647165,1770376246485,-500.0,0.00025861,2]
[404647166,1770376246496,-500.0,0.00025861,2]